bitfinex-derivatives/quotes_ETHF0:USTF0_20250624
["timestamp","ask_amount","ask_price","bid_price","bid_amount"]
[1750765616360,0.82978,2408.8,2408.6,0.82981]
[1750765616556,0.82979,2408.8,2408.7,0.82979]
[1750765616956,0.82979,2408.7,2408.6,0.8298]
[1750765617155,0.82979,2408.7,2408.6,27.7908]
[1750765617358,0.82978,2408.8,2408.7,0.82979]
[1750765618561,4.03754,2408.9,2408.8,0.82976]
[1750765618859,4.03754,2408.9,2408.7,0.82977]
[1750765619066,4.03754,2408.9,2408.6,26.961]
[1750765619365,3.2078,2408.9,2408.8,0.82976]
[1750765620966,4.03752,2408.9,2408.8,0.82976]
[1750765621163,3.2078,2408.9,2408.8,0.82976]
[1750765623066,4.03752,2408.9,2408.8,0.82976]
[1750765623363,5.72822,2408.9,2408.8,0.82976]
[1750765623959,4.8985,2408.9,2408.8,0.82976]
[1750765625661,3.2078,2408.9,2408.8,0.82976]
[1750765625965,1.7078,2409.4,2409.3,0.82959]
[1750765626160,1.7078,2409.4,2409.3,35.26659]
[1750765627061,3.2078,2409.6,2409.5,0.82952]
[1750765627961,3.2078,2410.0,2409.5,0.82952]
[1750765628158,4.03716,2410.0,2409.6,28.99271]
[1750765628360,1.7328,2409.9,2409.8,0.82941]
[1750765629871,1.7679,2410.1,2410.0,0.82934]
[1750765630169,2.59721,2410.1,2410.0,0.82934]
[1750765630667,4.33001,2410.1,2410.0,0.82934]
[1750765631166,3.5007,2410.1,2410.0,0.82934]
[1750765631470,4.33001,2410.1,2410.0,0.82934]
[1750765633456,0.82941,2409.9,2409.8,0.82939]
[1750765633668,3.2078,2410.0,2409.7,7.509]
[1750765633963,2.51411,2409.9,2409.8,0.82938]
[1750765638162,0.82941,2409.8,2409.7,8.33841]
[1750765638365,2.5141,2409.9,2409.8,0.82941]
[1750765639376,8.3401,2409.9,2409.8,0.82941]
[1750765640273,6.6554,2409.9,2409.8,0.82941]
[1750765640874,5.826,2409.9,2409.8,3.2834363]
[1750765641172,5.826,2409.9,2409.8,4.9869363]
[1750765641976,6.65538,2409.9,2409.8,4.9869363]
[1750765642177,6.65538,2409.9,2409.8,2.53291]
[1750765642876,8.29658,2409.9,2409.8,2.53291]
[1750765645379,6.65538,2409.9,2409.8,2.53291]
[1750765646581,6.65538,2409.9,2409.8,36.79991]
[1750765648274,8.37178,2409.9,2409.8,36.79991]
[1750765648886,5.826,2409.9,2409.8,39.2539363]
[1750765649388,0.82929,2410.2,2410.1,0.82931]
[1750765649580,0.82929,2410.2,2410.1,37.5393363]
[1750765650084,0.82926,2410.3,2410.2,0.82924]
[1750765651282,5.75346,2410.4,2410.3,0.82924]
[1750765652176,2.54566,2410.4,2410.3,0.82924]
[1750765652384,0.82926,2410.4,2410.3,0.82924]
[1750765652589,8.4272,2410.5,2410.4,0.82921]
[1750765652896,0.82921,2410.4,2410.3,27.64022]
[1750765653585,0.82921,2410.4,2410.3,26.811]
[1750765653980,2.54721,2410.4,2410.3,27.64024]
[1750765654285,0.82921,2410.4,2410.3,27.64024]
[1750765655378,3.2078,2411.1,2410.6,0.82914]
[1750765655584,3.2078,2410.8,2410.7,38.3937]
[1750765655779,4.03687,2410.8,2410.7,4.1657]
[1750765655986,1.01232666,2410.8,2410.7,4.1657]
[1750765656184,4.2118263,2411.2,2410.7,4.1657]
[1750765656185,3.2078,2411.2,2410.8,2.07268]
[1750765656381,1.01130541,2411.1,2411.0,3.2830063]
[1750765656579,1.01130541,2411.1,2411.0,10.7160063]
[1750765656782,3.2078,2411.6,2411.1,0.82897]
[1750765656983,3.2078,2411.6,2411.5,0.82883]
[1750765657384,3.2715515,2411.6,2411.5,2.56073]
[1750765657788,0.0637515,2411.6,2411.5,4.18693]
[1750765658094,3.2078,2412.0,2411.9,0.82869]
[1750765658284,4.03627,2412.6,2412.4,0.82851]
[1750765658688,3.3399,2412.9,2412.6,0.82843]
[1750765658689,0.82839,2412.8,2412.6,0.82843]
[1750765658886,0.82845,2412.6,2412.4,0.82851]
[1750765659187,3.2078,2412.9,2412.3,2.4540263]
[1750765659494,3.2078,2412.4,2412.0,1.6047]
[1750765659692,5.9551263,2412.3,2411.8,3.2078]
[1750765659885,0.82869,2411.9,2411.8,3.2078]
[1750765660491,0.82868,2412.0,2411.8,3.2078]
[1750765660796,0.82869,2411.9,2411.8,3.2078]
[1750765661997,0.82876,2411.8,2411.5,4.03661]
[1750765662192,0.82879,2411.6,2411.5,3.2078]
[1750765662497,0.82882,2411.6,2411.4,1.6812]
[1750765662684,1.6755,2411.5,2411.2,4.03671]
[1750765662889,4.8833,2411.5,2411.0,1.7708]
[1750765663194,4.8833,2411.5,2411.0,2.59977]
[1750765663396,4.8833,2411.5,2411.0,1.7708]
[1750765663788,0.82893,2411.3,2411.0,1.7708]
[1750765663989,5.71215,2411.5,2411.3,0.82888]
[1750765664191,2.50435,2411.5,2411.3,0.82888]
[1750765664800,0.82886,2411.4,2411.2,0.82891]
[1750765665091,2.50436,2411.4,2411.3,0.8289]
[1750765665297,0.8289,2411.3,2411.2,0.82891]
[1750765665502,2.50439,2411.4,2411.2,0.82891]
[1750765666291,0.8289,2411.3,2411.2,0.82891]
[1750765667697,2.50439,2411.4,2411.3,0.8289]
[1750765668202,0.82891,2411.3,2411.2,0.82892]
[1750765668704,1.6755,2411.4,2411.0,1.7708]
[1750765669001,0.82897,2411.1,2411.0,2.5998]
[1750765669198,0.82897,2411.1,2411.0,0.829]
[1750765669395,0.82898,2411.1,2411.0,0.82897]
[1750765670303,0.82898,2411.1,2411.0,0.829]
[1750765671207,0.82895,2411.2,2411.1,0.82894]
[1750765671798,2.59185,2411.2,2411.1,0.82894]
[1750765672194,7.548,2411.3,2411.2,0.82893]
[1750765673610,8.3769,2411.3,2411.2,0.82893]
[1750765674711,4.14472,2411.2,2410.0,3.2078]
[1750765675016,0.82935,2410.0,2409.6,3.2078]
[1750765675313,3.2078,2410.2,2409.6,3.2078]
[1750765675314,1.7192,2409.9,2409.8,0.82941]
[1750765675705,2.54858,2409.9,2409.8,0.82941]
[1750765675912,2.54858,2409.9,2409.7,0.82943]
[1750765676613,0.82941,2409.8,2409.7,0.82943]
[1750765677114,2.5486,2409.9,2409.7,0.82943]
[1750765677412,0.8294,2409.9,2409.8,0.82941]
[1750765677807,0.82936,2410.0,2409.9,0.82937]
[1750765678616,5.7299,2410.2,2410.1,0.82931]
[1750765678819,2.5221,2410.2,2410.0,0.82932]
[1750765679009,0.82931,2410.1,2410.0,0.82932]
[1750765679521,0.82931,2410.1,2409.9,0.82936]
[1750765679713,0.82931,2410.1,2410.0,0.82935]
[1750765679914,0.82936,2410.0,2409.9,0.82937]
[1750765680311,0.82933,2410.1,2410.0,0.82933]
[1750765680809,3.2078,2410.2,2409.9,11.99803423]
[1750765681013,3.2078,2410.2,2410.1,0.82931]
[1750765682219,4.03708,2410.2,2410.1,0.82931]
[1750765682522,3.2078,2410.2,2410.1,0.82931]
[1750765683021,4.03708,2410.2,2410.1,0.82931]
[1750765683316,3.2078,2410.2,2410.1,0.82931]
[1750765684419,4.03708,2410.2,2410.1,0.82931]
[1750765685525,0.82926,2410.3,2410.2,0.82924]
[1750765686122,4.03705,2410.4,2410.3,0.82924]
[1750765686323,0.82925,2410.4,2410.3,0.82924]
[1750765686629,2.49116,2410.6,2410.5,0.82917]
[1750765686814,0.8292,2410.5,2410.4,0.82918]
[1750765687013,0.82928,2410.3,2410.2,0.82925]
[1750765688021,0.82925,2410.4,2410.3,0.82924]
[1750765690118,0.82919,2410.5,2410.4,0.82915]
[1750765691124,0.82924,2410.4,2410.3,0.82922]
[1750765691923,0.82924,2410.4,2410.3,0.82924]
[1750765693913,0.82924,2410.3,2410.2,1.7643]
[1750765694126,0.82928,2410.2,2410.1,4.03709]
[1750765694927,0.8930315,2410.2,2410.1,4.03709]
[1750765695221,0.0637515,2410.2,2410.1,4.03709]
[1750765695723,0.8930315,2410.2,2410.1,4.03709]
[1750765696226,0.0637515,2410.2,2410.1,4.03709]
[1750765696422,0.8930315,2410.2,2410.1,4.03709]
[1750765697828,0.0637515,2410.2,2410.1,4.03709]
[1750765698226,0.8930315,2410.2,2410.1,4.03709]
[1750765698423,0.0637515,2410.2,2410.1,4.03709]
[1750765698629,0.8930315,2410.2,2410.1,4.03709]
[1750765699031,0.82928,2410.2,2410.1,4.03709]
[1750765699424,1.6551,2410.3,2410.2,0.82928]
[1750765699425,2.48436,2410.3,2410.2,0.82928]
[1750765699929,1.6551,2410.3,2410.2,0.82928]
[1750765700129,2.48434,2410.3,2410.2,0.82928]
[1750765701430,1.6551,2410.3,2410.2,3.28228877]
[1750765701630,9.86296,2410.7,2410.6,0.82914]
[1750765702330,11.57206,2410.7,2410.6,0.82914]
[1750765702531,12.58214715,2410.7,2410.6,0.82914]
[1750765702926,11.57206,2410.7,2410.6,0.82914]
[1750765703131,12.58222644,2410.7,2410.6,0.82914]
[1750765703930,0.82917,2410.6,2410.5,0.82915]
[1750765704118,3.55087485,2410.6,2410.5,0.82915]
[1750765705033,0.82923,2410.5,2410.4,0.82918]
[1750765705231,3.57313485,2410.5,2410.4,0.82918]
[1750765706233,0.82902,2411.0,2410.9,0.82904]
[1750765706438,2.59659,2411.1,2411.0,0.829]
[1750765706632,5.34095697,2411.1,2411.0,0.829]
[1750765708531,2.78066697,2411.1,2411.0,0.829]
[1750765708736,1.7676,2411.1,2411.0,0.829]
[1750765710334,2.59657,2411.1,2411.0,0.829]
[1750765711733,1.7676,2411.1,2411.0,0.829]
[1750765712238,2.59657,2411.1,2411.0,0.829]
[1750765713744,1.7676,2411.1,2411.0,0.829]
[1750765714134,6.65495,2411.2,2411.1,0.82897]
[1750765715131,8.31685,2411.2,2411.1,0.82897]
[1750765715336,7.5516515,2411.2,2411.1,0.82897]
[1750765715539,8.3805815,2411.2,2411.1,0.82897]
[1750765716435,8.31683,2411.2,2411.1,0.82897]
[1750765716744,5.826,2411.2,2411.1,0.82897]
[1750765717044,9.86272,2411.3,2411.2,0.82893]
[1750765717238,10.04497739,2411.3,2411.2,0.82893]
[1750765717440,10.87387739,2411.3,2411.2,0.82893]
[1750765717946,10.04497739,2411.3,2411.2,0.82893]
[1750765718846,9.8627,2411.3,2411.2,0.82893]
[1750765719047,10.87367474,2411.3,2411.2,0.82893]
[1750765719239,9.8627,2411.3,2411.2,0.82893]
[1750765719846,6.6549,2411.3,2411.2,0.82893]
[1750765720243,7.6656568,2411.3,2411.2,0.82893]
[1750765725049,0.82897,2411.2,2411.1,0.82893]
[1750765725251,1.8397268,2411.2,2411.1,0.82893]
[1750765725747,1.0107568,2411.2,2411.1,0.82893]
[1750765725955,0.82893,2411.2,2411.1,0.82893]
[1750765726151,6.65492,2411.3,2411.2,0.82893]
[1750765726349,7.66580259,2411.3,2411.2,0.82893]
[1750765726650,7.72955409,2411.3,2411.2,0.82893]
[1750765727444,7.66580259,2411.3,2411.2,0.82893]
[1750765728454,0.0637515,2411.4,2411.2,8.14093]
[1750765728646,0.0637515,2411.4,2411.3,10.43534422]
[1750765728945,0.0637515,2411.4,2411.3,12.16514422]
[1750765729539,0.82877,2411.7,2411.6,0.82879]
[1750765729943,0.82883,2411.6,2411.5,0.82881]
[1750765730145,1.8403454,2411.6,2411.5,0.82881]
[1750765730345,1.8403454,2411.6,2411.5,3.27896879]
[1750765731642,0.82893,2411.3,2411.2,0.82891]
[1750765733555,0.82889,2411.4,2411.3,0.82886]
[1750765733749,3.52496823,2411.4,2411.3,3.27901879]
[1750765736555,2.51279,2411.4,2411.3,3.27901879]
[1750765738255,3.52662482,2411.4,2411.3,3.27901879]
[1750765738456,2.51279,2411.4,2411.3,3.27901879]
[1750765738657,3.526633,2411.4,2411.3,3.27901879]
[1750765738857,3.526633,2411.4,2411.2,2.55251]
[1750765738858,0.8289,2411.3,2411.2,2.55251]
[1750765739057,2.5771,2411.3,2411.2,0.82891]
[1750765743164,1.7482,2411.3,2411.2,0.82891]
[1750765743464,0.8289,2411.4,2411.3,0.8289]
[1750765743663,1.84307164,2411.4,2411.3,3.27905879]
[1750765744570,3.46867164,2411.4,2411.3,3.27905879]
[1750765746375,1.84307164,2411.4,2411.3,3.27905879]
[1750765746875,1.90682314,2411.4,2411.3,3.27905879]
[1750765747572,3.14e-06,2411.4,2411.3,11.48685879]
[1750765747879,8.29326,2412.1,2412.0,0.82866]
[1750765748182,8.29326,2412.1,2412.0,3.27881879]
[1750765749266,7.4646,2412.1,2412.0,3.27881879]
[1750765750379,8.29322,2412.1,2412.0,3.27881879]
[1750765750678,7.4646,2412.1,2412.0,3.27881879]
[1750765751266,8.29322,2412.1,2412.0,3.27881879]
[1750765751473,5.826,2412.1,2412.0,3.27881879]
[1750765751779,0.82862,2412.2,2412.1,0.8286]
[1750765751978,0.82862,2412.1,2412.0,3.27878879]
[1750765752182,0.82861,2412.2,2412.1,0.82859]
[1750765752478,4.8897,2412.3,2412.2,0.82859]
[1750765752870,4.8897,2412.3,2412.1,0.8286]
[1750765753070,0.82862,2412.1,2412.0,3.27878879]
[1750765753574,0.82861,2412.2,2412.1,0.82859]
[1750765754976,0.82862,2412.1,2412.0,3.27878879]
[1750765756083,0.82862,2412.1,2412.0,2.45015879]
[1750765756385,0.82862,2412.1,2412.0,3.27881879]
[1750765757186,0.82862,2412.1,2412.0,2.45015879]
[1750765758087,0.82869,2411.9,2411.8,4.13595879]
[1750765758686,2.55739,2411.9,2411.8,2.45015879]
[1750765759590,1.7287,2411.9,2411.6,1.7543]
[1750765759783,0.82883,2411.5,2411.4,9.70615879]
[1750765760383,0.82883,2411.5,2411.4,10.53501879]
[1750765762692,2.53883,2411.6,2411.5,0.82883]
[1750765762981,6.65475,2411.8,2411.7,0.82876]
[1750765763587,6.65475,2411.8,2411.7,2.57476]
[1750765764186,6.65475,2411.8,2411.7,1.746]
[1750765764489,6.65475,2411.8,2411.7,2.57476]
[1750765764792,6.65475,2411.8,2411.7,1.746]
[1750765766384,6.65475,2411.8,2411.7,2.57476]
[1750765772092,5.826,2411.8,2411.4,7.256]
[1750765772399,0.82879,2411.6,2411.5,3.27897879]
[1750765773699,2.48469,2411.7,2411.6,0.82879]
[1750765774002,6.65476,2411.8,2411.7,0.82876]
[1750765774198,7.66463161,2411.8,2411.7,3.27891879]
[1750765774601,1.00987161,2411.8,2411.7,3.27891879]
[1750765774908,2.55339,2412.0,2411.9,0.82869]
[1750765775199,3.56340201,2412.0,2411.9,3.27884879]
[1750765776803,3.56340201,2412.0,2411.9,2.45015879]
[1750765777005,3.56340201,2412.0,2411.9,3.27884879]
[1750765777405,3.56340201,2412.0,2411.9,2.45015879]
[1750765777605,3.56340201,2412.0,2411.9,3.27884879]
[1750765777808,3.56340201,2412.0,2411.9,2.45015879]
[1750765778001,3.56340201,2412.0,2411.9,3.27884879]
[1750765779010,1.83870201,2412.0,2411.9,3.27884879]
[1750765779507,1.83870201,2412.0,2411.9,2.45015879]
[1750765781109,1.83870201,2412.0,2411.9,3.27884879]
[1750765784000,1.83870201,2412.0,2411.9,2.45015879]
[1750765784602,0.82869,2411.9,2411.8,8.874]
[1750765784903,3.50830201,2411.9,2411.8,8.874]
[1750765785803,3.50830201,2411.9,2411.8,9.70273]
[1750765786808,3.50830201,2411.9,2411.8,8.874]
[1750765787003,3.50830201,2411.9,2411.8,9.70273]
[1750765787703,1.83870201,2411.9,2411.8,9.70273]
[1750765787907,1.83870201,2411.9,2411.8,12.0818]
[1750765788811,1.83870201,2411.9,2411.8,12.91053]
[1750765789405,1.90245351,2411.9,2411.8,12.91053]
[1750765790099,1.90245351,2411.9,2411.8,12.0818]
[1750765790406,1.90245351,2411.9,2411.8,9.70273]
[1750765791004,3.54815351,2411.9,2411.8,9.70273]
[1750765791706,1.07376351,2411.9,2411.8,9.70273]
[1750765791907,1.90245351,2411.9,2411.8,9.70273]
[1750765794110,1.07376351,2411.9,2411.8,9.70273]
[1750765794302,0.0637515,2411.9,2411.8,12.91053]
[1750765794508,0.0637515,2411.9,2411.8,14.53343]
[1750765798510,5.826,2412.1,2412.0,0.82866]
[1750765798712,0.82855,2412.4,2412.3,0.82851]
[1750765798908,0.82855,2412.4,2412.3,10.42966879]
[1750765799208,1.84148455,2412.4,2412.3,10.42966879]
[1750765799513,7.5946,2412.6,2412.3,10.42966879]
[1750765799809,6.65445,2412.6,2412.5,3.27864879]
[1750765800008,6.83919768,2412.6,2412.5,3.27864879]
[1750765800308,5.826,2412.6,2412.5,3.27864879]
[1750765800511,6.65445,2412.6,2412.5,3.27864879]
[1750765800910,6.65445,2412.6,2412.5,2.45015879]
[1750765801118,0.82849,2412.5,2412.4,0.82852]
[1750765801315,4.24789,2412.5,2412.4,7.97952]
[1750765801512,5.26112133,2412.5,2412.4,0.82852]
[1750765801712,5.26112133,2412.5,2412.4,7.97952]
[1750765802211,4.24789,2412.5,2412.4,7.97952]
[1750765802718,4.24789,2412.5,2412.4,7.97852]
[1750765802719,5.26070894,2412.5,2412.4,7.97852]
[1750765803717,5.26070894,2412.5,2412.3,2.45015879]
[1750765803718,0.82852,2412.4,2412.3,2.45015879]
[1750765804014,0.82855,2412.3,2412.2,4.8997]
[1750765804211,2.07148,2412.2,2411.5,4.12703394]
[1750765804415,2.07148,2412.2,2411.6,0.82879]
[1750765804416,4.03658,2411.7,2411.6,0.82879]
[1750765804617,0.82878,2411.7,2411.6,0.82879]
[1750765808410,0.82875,2411.8,2411.7,0.82873]
[1750765808610,1.84139749,2411.8,2411.7,0.82873]
[1750765809013,3.56769749,2411.8,2411.7,0.82873]
[1750765809408,2.55505,2411.8,2411.7,0.82873]
[1750765809617,9.39359479,2411.8,2411.7,0.82873]
[1750765810518,8.38105,2411.8,2411.7,0.82873]
[1750765810718,6.65475,2411.8,2411.7,0.82873]
[1750765810918,6.65475,2411.8,2411.7,3.27888879]
[1750765811119,6.65475,2411.8,2411.7,2.45015879]
[1750765811426,6.65475,2411.8,2411.7,3.27891879]
[1750765811721,9.34442151,2411.8,2411.7,3.27891879]
[1750765812323,8.33145,2411.8,2411.7,3.27891879]
[1750765812517,9.34446183,2411.8,2411.7,3.27891879]
[1750765813215,9.34446183,2411.8,2411.7,0.82876]
[1750765813418,9.34446183,2411.8,2411.5,2.45015879]
[1750765813419,0.82879,2411.7,2411.6,0.82876]
[1750765813722,0.8289,2411.4,2411.3,0.82887]
[1750765814030,0.82886,2411.5,2411.4,0.82883]
[1750765814326,0.82886,2411.5,2411.4,3.27898879]
[1750765814819,2.60216,2411.5,2411.4,3.27898879]
[1750765815720,4.23176,2411.5,2411.4,2.45015879]
[1750765816218,0.8289,2411.3,2411.2,6.48686879]
[1750765816419,0.8289,2411.3,2411.2,13.63786879]
[1750765816918,0.8289,2411.3,2411.2,12.80895879]
[1750765817724,0.8289,2411.3,2411.2,13.63788879]
[1750765818030,0.82889,2411.4,2411.3,0.82886]
[1750765819222,2.57809,2411.4,2411.3,0.82886]
[1750765819416,6.65486,2411.5,2411.4,0.82886]
[1750765819722,6.65486,2411.5,2411.4,3.27901879]
[1750765821119,6.7186115,2411.5,2411.4,3.27901879]
[1750765821722,6.7186115,2411.5,2411.3,2.45015879]
[1750765821723,0.82886,2411.4,2411.3,2.45015879]
[1750765821923,4.31746,2411.4,2411.3,3.27905879]
[1750765825127,2.60046,2411.4,2411.3,3.27905879]
[1750765826431,1.7716,2411.4,2411.3,3.27905879]
[1750765826731,2.60046,2411.4,2411.3,3.27905879]
[1750765827031,1.7716,2411.4,2411.3,3.27905879]
[1750765827326,6.7186015,2411.5,2411.4,0.82886]
[1750765827936,6.7186015,2411.5,2411.4,2.51676]
[1750765828629,0.8926015,2411.5,2411.4,2.51676]
[1750765829025,0.0637515,2411.5,2411.4,2.51676]
[1750765829234,0.0637515,2411.5,2411.4,4.12896]
[1750765829431,0.0637515,2411.5,2411.4,5.79056]
[1750765831125,0.0637515,2411.5,2411.4,6.57911879]
[1750765831937,0.8925815,2411.5,2411.4,6.57911879]
[1750765832338,0.8925815,2411.5,2411.4,13.68311879]
[1750765833535,0.0637515,2411.5,2411.4,13.68311879]
[1750765837242,0.8925815,2411.5,2411.4,13.68311879]
[1750765838332,0.0637515,2411.5,2411.4,13.68311879]
[1750765839545,0.8925815,2411.5,2411.4,13.68311879]
[1750765839835,0.0637515,2411.5,2411.4,13.68311879]
[1750765841340,0.8925815,2411.5,2411.4,13.68311879]
[1750765841644,0.0637515,2411.5,2411.4,13.68311879]
[1750765841833,0.8925815,2411.5,2411.4,13.68311879]
[1750765843637,0.8925815,2411.5,2411.4,7.104]
[1750765843938,1.90533462,2411.5,2411.4,7.104]
[1750765844546,3.56383462,2411.5,2411.4,7.93286]
[1750765845442,3.56325142,2411.5,2411.4,7.104]
[1750765845648,3.56325142,2411.5,2411.4,7.93286]
[1750765846840,3.56325142,2411.5,2411.4,7.104]
[1750765847044,3.56325142,2411.5,2411.4,7.93286]
[1750765848149,2.73442142,2411.5,2411.4,10.38301879]
[1750765848352,0.0637515,2411.5,2411.4,10.38301879]
[1750765848545,0.8925815,2411.5,2411.4,10.38301879]
[1750765848745,0.0637515,2411.5,2411.4,10.38301879]
[1750765849249,0.8925815,2411.5,2411.4,10.38301879]
[1750765851652,2.6619815,2411.5,2411.4,10.38301879]
[1750765851844,2.6619815,2411.5,2411.4,7.93286]
[1750765853158,1.8331515,2411.5,2411.4,10.38301879]
[1750765853453,0.0637515,2411.5,2411.4,10.38301879]
[1750765854552,0.8925815,2411.5,2411.4,10.38301879]
[1750765856549,0.8925815,2411.5,2411.4,7.93286]
[1750765856848,2.5813815,2411.5,2411.4,7.93286]
[1750765857449,2.5813815,2411.5,2411.4,7.104]
[1750765857648,2.5813815,2411.5,2411.2,5.65795879]
[1750765857649,0.8289,2411.4,2411.3,0.82886]
[1750765857849,2.5814115,2411.5,2411.4,0.82886]
[1750765858052,3.59354286,2411.5,2411.4,0.82886]
[1750765859955,1.07588286,2411.5,2411.4,3.27901879]
[1750765860158,0.0637515,2411.5,2411.4,3.27901879]
[1750765860755,0.0637515,2411.5,2411.4,5.04301879]
[1750765861755,0.8925815,2411.5,2411.4,5.04301879]
[1750765861957,0.8925815,2411.5,2411.4,3.27901879]
[1750765864260,0.0637515,2411.5,2411.4,3.27901879]
[1750765865261,0.8925815,2411.5,2411.4,3.27901879]
[1750765865460,0.0637515,2411.5,2411.4,3.27901879]
[1750765867965,0.0637515,2411.5,2411.4,4.98791879]
[1750765868861,0.8925815,2411.5,2411.4,3.27901879]
[1750765869760,0.8925815,2411.5,2411.4,0.82886]
[1750765869964,1.90526654,2411.5,2411.4,0.82886]
[1750765870159,0.8289,2411.4,2411.3,0.82886]
[1750765870365,2.5684,2411.4,2411.3,7.059]
[1750765870666,5.17855521,2411.4,2411.3,7.059]
[1750765870853,5.17855521,2411.4,2410.9,1.6277]
[1750765870854,16.89785521,2411.4,2410.9,1.6277]
[1750765871164,0.82902,2411.0,2410.9,0.82904]
[1750765871366,4.8053,2411.3,2410.9,2.45015879]
[1750765871563,1.01195983,2411.2,2411.1,3.27908879]
[1750765872367,0.82893,2411.2,2411.1,3.27908879]
[1750765873066,0.82892,2411.3,2411.2,0.82893]
[1750765873361,1.84040008,2411.3,2411.2,0.82893]
[1750765873668,1.01148008,2411.3,2411.2,0.82893]
[1750765873859,5.826,2411.4,2411.3,0.8289]
[1750765874054,0.0637515,2411.5,2411.4,0.82886]
[1750765874365,0.0637515,2411.5,2411.4,7.88786]
[1750765876769,0.0637515,2411.5,2411.4,9.48666]
[1750765877771,0.0637515,2411.5,2411.4,7.88786]
[1750765879669,0.8925815,2411.5,2411.4,7.88786]
[1750765879865,0.0637515,2411.5,2411.4,7.88786]
[1750765880272,0.8925815,2411.5,2411.4,7.88786]
[1750765884967,0.82897,2411.2,2411.1,7.88794]
[1750765885467,5.5536815,2411.5,2411.2,0.82893]
[1750765885468,1.6196,2411.3,2411.2,0.82893]
[1750765885675,2.44853,2411.3,2411.2,0.82893]
[1750765887774,0.82904,2411.0,2410.9,0.82901]
[1750765888775,0.82904,2410.9,2410.8,8.7976]
[1750765888970,0.82904,2410.9,2410.8,7.059]
[1750765889383,2.51144,2410.9,2410.8,7.059]
[1750765889674,1.6824,2410.9,2410.6,7.88811]
[1750765889873,1.6824,2410.8,2410.4,3.2078]
[1750765890078,0.82928,2410.2,2410.1,3.2078]
[1750765890264,0.82928,2410.2,2410.1,4.03711]
[1750765890463,0.82934,2410.1,2410.0,0.82932]
[1750765890870,3.4222,2410.3,2409.9,7.02]
[1750765891176,0.82933,2410.1,2410.0,0.82933]
[1750765891674,0.82981,2408.7,2408.5,0.82985]
[1750765891865,3.2078,2409.0,2408.6,2.45015879]
[1750765892065,3.2078,2409.3,2408.6,3.27997879]
[1750765892377,0.82971,2409.0,2408.8,2.45015879]
[1750765892567,0.82968,2409.1,2408.8,2.45015879]
[1750765892768,0.8297,2409.0,2408.8,3.27989879]
[1750765892967,0.82965,2409.1,2408.8,3.27989879]
[1750765893174,0.8297,2409.0,2408.8,3.27989879]
[1750765893393,0.82976,2408.8,2408.7,3.2078]
[1750765893770,0.82976,2408.8,2408.7,10.2298]
[1750765893972,0.82974,2408.9,2408.7,11.05959]
[1750765894174,1.6698,2409.2,2408.8,2.45015879]
[1750765894481,1.6698,2409.2,2408.7,10.2298]
[1750765894688,0.82976,2408.8,2408.7,10.2298]
[1750765895279,0.82976,2408.8,2408.7,7.022]
[1750765896187,0.82986,2408.5,2408.4,3.2078]
[1750765896473,0.82986,2408.5,2408.4,10.2308]
[1750765896675,1.7197,2409.0,2408.4,3.2078]
[1750765896876,0.82981,2408.7,2408.5,7.85286]
[1750765897380,0.82983,2408.6,2408.5,12.49618828]
[1750765898083,0.82983,2408.6,2408.5,7.023]
[1750765898284,0.82986,2408.5,2408.4,3.2078]
[1750765898582,0.82986,2408.5,2408.4,10.2308]
[1750765898779,0.82986,2408.5,2408.4,7.023]
[1750765900180,0.82986,2408.5,2408.4,7.8529]
[1750765900485,0.82986,2408.5,2408.4,7.023]
[1750765901585,0.82986,2408.5,2408.4,7.8529]
[1750765902176,2.0746,2408.6,2408.0,10.2338]
[1750765902479,3.2078,2408.6,2408.1,6.71832828]
[1750765902683,2.07432,2408.9,2408.4,4.64332828]
[1750765902988,0.8299,2408.4,2408.3,4.03771]
[1750765904282,0.82985,2408.6,2408.5,0.82984]
[1750765904990,0.82981,2408.7,2408.6,0.8298]
[1750765905190,3.2078,2409.3,2408.6,2.07456]
[1750765905376,0.82969,2409.1,2409.0,0.82967]
[1750765905582,0.82964,2409.2,2409.1,0.82965]
[1750765906084,7.4457,2409.6,2409.3,0.82955]
[1750765906289,0.82954,2409.5,2409.4,0.82954]
[1750765906493,0.82952,2409.5,2409.4,7.85552]
[1750765907190,0.82952,2409.5,2409.4,7.026]
[1750765907887,4.03727,2409.7,2409.6,0.82948]
[1750765908286,0.8295,2409.6,2409.5,0.82949]
[1750765908790,4.03727,2409.7,2409.6,0.82948]
[1750765909591,1.5291,2409.9,2409.4,10.2338]
[1750765909782,0.8295,2409.6,2409.5,0.82949]
[1750765909982,0.82947,2409.7,2409.6,0.82946]
[1750765910784,0.82948,2409.6,2409.5,2.3503]
[1750765911283,0.82948,2409.6,2409.5,1.5208]
[1750765914389,0.82948,2409.6,2409.5,2.35032]
[1750765915094,0.82948,2409.6,2409.5,1.5208]
[1750765915392,0.82948,2409.6,2409.5,2.35032]
[1750765915693,0.82948,2409.6,2409.5,1.5208]
[1750765916393,0.82948,2409.6,2409.5,2.35032]
[1750765916891,0.82948,2409.6,2409.4,7.026]
[1750765916892,0.82952,2409.5,2409.4,7.026]
[1750765917483,0.82952,2409.5,2409.4,7.85555]
[1750765919283,0.82959,2409.4,2409.3,0.82955]
[1750765919489,0.82959,2409.4,2409.3,7.85555]
[1750765921898,3.88904,2409.5,2409.4,0.82955]
[1750765923592,3.2078,2409.6,2409.5,0.82952]
[1750765923997,3.2078,2409.6,2409.5,2.47182]
[1750765924586,4.03728,2409.6,2409.5,2.47182]
[1750765925598,3.2078,2409.6,2409.5,2.47182]
[1750765925999,4.03728,2409.6,2409.5,2.47182]
[1750765926996,3.2078,2409.6,2409.5,2.47182]
[1750765928503,4.03728,2409.6,2409.5,2.47182]
[1750765929903,3.2078,2409.6,2409.5,2.47182]
[1750765930202,0.82948,2409.7,2409.6,0.82944]